Workbook

Sheet Innehåll
B2: Innehållsförteckning
B4: Anvisningar | C4: Anvisningar för att producera diagram till webben
B6: Vägledning | C6: Definitioner och förklaringar
B8: Data | C8: Tidsserier som ligger till grund för diagrammen samt originalserie
B10: Diagram 1 | C10: =Data!A5 -> Hushållens finansiella sparande i vissa finansiella tillgångar, mdkr
B12: Diagram 2 | C12: …
B14: Diagram 3 | C14: …
B16: Diagram 4 | C16: …

Sheet Contents
B2: Contents
B4: Guide | C4: Definitions & explanations
B6: Data | C6: …
B8: Graph 1 | C8: =Data!A1 -> Households' transactions in certain financial assets, SEK billions
B10: Graph 2 | C10: …
B12: Graph 3 | C12: …
B14: Graph 4 | C14: …

Sheet Vägledning
B2: Vägledning
B4: Utskriftstips | C4: Utskriftsformatet i samtliga flikar med diagram är förinställt på att utskriften förstoras till 120% och innehållet centreras vertikalt och horisontellt.
C5: Om utskriften av diagrammen inte blir tillfredställande så ändra inställningarna under utskriftsformat till vad som passar just din skrivare.
B8: Definitioner & förklaringar
C10: Diagrammet visar hushållens finansiella sparande i vissa finansiella tillgångar. De finansiella instrument som ingår är inlåning, certifikat, obligationer, aktier, fondandelar, bostadsrättsandelar samt privat försäkringssparande. De finansiella instrument som inte ingår är fritidshusägande i utlandet, kollektivt försäkringssparande, skadeförsäkringssparande, PPM och periodiseringsposterna.

Sheet Guide
B2: Guide
B8: Definitions & explanations
C10: The diagram shows household financial savings in certain financial assets. The financial instruments included are currency and deposits, short-term securities, long-term securities, listed shares, mutual funds, other equity and private insurance savings. The financial instruments not included are tenant ownership rights in the rest of the world, collective insurance savings, non-life insurance savings, premium pension, and other accounts receivable/payable.

Sheet Data
A1: Households' transactions in certain financial assets, SEK billions
D2: Transactions, SEK billions | J2: Transactions, SEK millions
D3: Currency and deposits | E3: Securities | F3: Listed shares | G3: Tenant ownership rights | H3: Mutual funds | I3: Insurance technical reserves | J3: Currency and deposits | K3: Securities | L3: Listed shares | M3: Tenant ownership rights | N3: Mutual funds | O3: Insurance technical reserves
D4: FA2100+FA22+29 | E4: FA3000 | F4: FA5110 | G4: FA5190 +S1 | H4: FA5200 | I4: FA6200 | J4: FA2100+FA22+29 | K4: FA3000 | L4: FA5110 | M4: FA5190 +S1 | N4: FA5200 | O4: FA6200
A5: Hushållens finansiella sparande i vissa finansiella tillgångar, mdkr
D6: Transaktioner, miljarder kronor | J6: Transaktioner (mnkr kronor)
D7: Sedlar, mynt och Inlåning | E7: Räntebärande värdepapper | F7: Börsnoterade aktier | G7: Bostadsrättsandelar | H7: Fonder | I7: Privat försäkringssparande | J7: Sedlar, mynt och Inlåning | K7: Räntebärande värdepapper | L7: Börsnoterade aktier | M7: Bostadsrättsandelar | N7: Fonder | O7: Privat försäkringssparande
A8: År, Year | B8: År och kvartal | C8: Year and Quarter | D8: FA2100+FA22+29 | E8: FA3000 | F8: FA5110 | G8: FA5190 +S1 | H8: FA5200 | I8: FA6200 | J8: FA2100+FA22+29 | K8: FA3000 | L8: FA5110 | M8: FA5190 +S1 | N8: FA5200 | O8: FA6200
A9: 2009 | B9: 2009 K1 | C9: 2009 Q1 | D9: =J9/1000 -> 0.742 | E9: -2.821 | F9: 1.157 | G9: 7.367 | H9: 3.309 | I9: =O9/1000 -> 10.291 | J9: 742 | K9: -2821 | L9: 1157 | M9: 7367 | N9: 3309 | O9: 10291
B10: 2009 K2 | C10: 2009 Q2 | D10: =J10/1000 -> 31.529 | E10: =K10/1000 -> -1.486 | F10: =L10/1000 -> 1.203 | G10: =M10/1000 -> 7.527 | H10: =N10/1000 -> 7.084 | I10: =O10/1000 -> 21.33 | J10: 31529 | K10: -1486 | L10: 1203 | M10: 7527 | N10: 7084 | O10: 21330
B11: 2009 K3 | C11: 2009 Q3 | D11: =J11/1000 -> 0.878 | E11: -2.503 | F11: -0.839 | G11: 5.244 | H11: 8.079 | I11: 11.594 | J11: 878 | K11: -2503 | L11: -839 | M11: 5244 | N11: 8079 | O11: 11594
B12: 2009 K4 | C12: 2009 Q4 | D12: 5.721 | E12: 6.384 | F12: -1.555 | G12: 9.789 | H12: 12.916 | I12: 9.631 | J12: 5721 | K12: 6384 | L12: -1555 | M12: 9789 | N12: 12916 | O12: 9631
A13: 2010 | B13: 2010 K1 | C13: 2010 Q1 | D13: -10.512 | E13: -4.968 | F13: 0.646 | G13: 8.623 | H13: 11.132 | I13: 19.513 | J13: -10512 | K13: -4968 | L13: 646 | M13: 8623 | N13: 11132 | O13: 19513
B14: 2010 K2 | C14: 2010 Q2 | D14: 36.064 | E14: -5.869 | F14: -2.49 | G14: 7.458 | H14: 6.923 | I14: 22.316 | J14: 36064 | K14: -5869 | L14: -2490 | M14: 7458 | N14: 6923 | O14: 22316
B15: 2010 K3 | C15: 2010 Q3 | D15: 19.505 | E15: -5.781 | F15: -4.879 | G15: 4.816 | H15: 0.936 | I15: 7.829 | J15: 19505 | K15: -5781 | L15: -4879 | M15: 4816 | N15: 936 | O15: 7829
B16: 2010 K4 | C16: 2010 Q4 | D16: 34.39 | E16: -12.307 | F16: -5.036 | G16: 5.666 | H16: 0.728 | I16: 6.166 | J16: 34390 | K16: -12307 | L16: -5036 | M16: 5666 | N16: 728 | O16: 6166
A17: 2011 | B17: 2011 K1 | C17: 2011 Q1 | D17: -4.86 | E17: -9.201 | F17: 4.889 | G17: 4.418 | H17: -5.396 | I17: 17.249 | J17: -4860 | K17: -9201 | L17: 4889 | M17: 4418 | N17: -5396 | O17: 17249
B18: 2011 K2 | C18: 2011 Q2 | D18: 36.033 | E18: -1.503 | F18: 3.492 | G18: 4.361 | H18: 4.057 | I18: 9.87 | J18: 36033 | K18: -1503 | L18: 3492 | M18: 4361 | N18: 4057 | O18: 9870
B19: 2011 K3 | C19: 2011 Q3 | D19: 28.726 | E19: -3.832 | F19: -7.243 | G19: 4.467 | H19: -7.225 | I19: -2.176 | J19: 28726 | K19: -3832 | L19: -7243 | M19: 4467 | N19: -7225 | O19: -2176
B20: 2011 K4 | C20: 2011 Q4 | D20: 33.214 | E20: -3.197 | F20: -0.928 | G20: 6.512 | H20: -11.516 | I20: -7.663 | J20: 33214 | K20: -3197 | L20: -928 | M20: 6512 | N20: -11516 | O20: -7663
A21: 2012 | B21: 2012 K1 | C21: 2012 Q1 | D21: 3.4 | E21: -0.817 | F21: 2.66 | G21: 6.477 | H21: 6.179 | I21: 3.694 | J21: 3400 | K21: -817 | L21: 2660 | M21: 6477 | N21: 6179 | O21: 3694
B22: 2012 K2 | C22: 2012 Q2 | D22: 50.616 | E22: -0.247 | F22: -10.878 | G22: 4.186 | H22: 7.515 | I22: 4.489 | J22: 50616 | K22: -247 | L22: -10878 | M22: 4186 | N22: 7515 | O22: 4489
B23: 2012 K3 | C23: 2012 Q3 | D23: 23.879 | E23: -3.323 | F23: -4.843 | G23: 4.249 | H23: 0.554 | I23: -2.417 | J23: 23879 | K23: -3323 | L23: -4843 | M23: 4249 | N23: 554 | O23: -2417
B24: 2012 K4 | C24: 2012 Q4 | D24: 17.035 | E24: -6.434 | F24: -3.296 | G24: 7.637 | H24: 9.759 | I24: -14.976 | J24: 17035 | K24: -6434 | L24: -3296 | M24: 7637 | N24: 9759 | O24: -14976
A25: 2013 | B25: 2013 K1 | C25: 2013 Q1 | D25: 0.976 | E25: -1.564 | F25: 2.054 | G25: 9.969 | H25: 18.339 | I25: 2.075 | J25: 976 | K25: -1564 | L25: 2054 | M25: 9969 | N25: 18339 | O25: 2075
B26: 2013 K2 | C26: 2013 Q2 | D26: 37.828 | E26: 3.1 | F26: 3.428 | G26: 8.541 | H26: =N26/1000 -> 10.954 | I26: 4.237 | J26: 37828 | K26: 3100 | L26: 3428 | M26: 8541 | N26: 10954 | O26: 4237
B27: 2013 K3 | C27: 2013 Q3 | D27: 8.637 | E27: -2.403 | F27: -3.07 | G27: 5.302 | H27: 7.343 | I27: -1.693 | J27: 8637 | K27: -2403 | L27: -3070 | M27: 5302 | N27: 7343 | O27: -1693
B28: 2013 K4 | C28: 2013 Q4 | D28: 18.488 | E28: -0.936 | F28: 0.184 | G28: 10.084 | H28: 10.588 | I28: -1.679 | J28: 18488 | K28: -936 | L28: 184 | M28: 10084 | N28: 10588 | O28: -1679
A29: 2014 | B29: 2014 K1 | C29: 2014 Q1 | D29: -12.315 | E29: 0.463 | F29: -5.055 | G29: 7.085 | H29: 16.542 | I29: 7.626 | J29: -12315 | K29: 463 | L29: -5055 | M29: 7085 | N29: 16542 | O29: 7626
B30: 2014 K2 | C30: 2014 Q2 | D30: 46.598 | E30: -1.879 | F30: -1.618 | G30: 8.271 | H30: 15.098 | I30: 8.849 | J30: 46598 | K30: -1879 | L30: -1618 | M30: 8271 | N30: 15098 | O30: 8849
B31: 2014 K3 | C31: 2014 Q3 | D31: 3.579 | E31: -0.097 | F31: -0.465 | G31: 5.876 | H31: 16.586 | I31: 1.788 | J31: 3579 | K31: -97 | L31: -465 | M31: 5876 | N31: 16586 | O31: 1788
B32: 2014 K4 | C32: 2014 Q4 | D32: 23.813 | E32: -4.802 | F32: -1.284 | G32: 10.579 | H32: 7.074 | I32: 4.929 | J32: 23813 | K32: -4802 | L32: -1284 | M32: 10579 | N32: 7074 | O32: 4929
A33: 2015 | B33: 2015 K1 | C33: 2015 Q1 | D33: -7.406 | E33: -4.269 | F33: =L33/1000 -> -4.371 | G33: 7.468 | H33: 21.047 | I33: 2.937 | J33: -7406 | K33: -4269 | L33: -4371 | M33: 7468 | N33: 21047 | O33: 2937
B34: 2015 K2 | C34: 2015 Q2 | D34: 79.966 | E34: 3.277 | F34: -7.622 | G34: 8.343 | H34: 16.383 | I34: 6.049 | J34: 79966 | K34: 3277 | L34: -7622 | M34: 8343 | N34: 16383 | O34: 6049
B35: 2015 K3 | C35: 2015 Q3 | D35: 22.111 | E35: -1.297 | F35: 5.116 | G35: 10.804 | H35: -3.262 | I35: -0.539 | J35: 22111 | K35: -1297 | L35: 5116 | M35: 10804 | N35: -3262 | O35: -539
B36: 2015 K4 | C36: 2015 Q4 | D36: 22.393 | E36: -6.172 | F36: 9.673 | G36: 13.289 | H36: 7.891 | I36: -5.38 | J36: 22393 | K36: -6172 | L36: 9673 | M36: 13289 | N36: 7891 | O36: -5380
A37: 2016 | B37: 2016 K1 | C37: 2016 Q1 | D37: 17.766 | E37: -3.601 | F37: 3.557 | G37: 13.532 | H37: -1.731 | I37: 0.896 | J37: 17766 | K37: -3601 | L37: 3557 | M37: 13532 | N37: -1731 | O37: 896
B38: 2016 K2 | C38: 2016 Q2 | D38: 76.013 | E38: 0.345 | F38: 7.178 | G38: 11.521 | H38: 1.249 | I38: -1.421 | J38: 76013 | K38: 345 | L38: 7178 | M38: 11521 | N38: 1249 | O38: -1421
B39: 2016 K3 | C39: 2016 Q3 | D39: =J39/1000 -> 15.816 | E39: -2.232 | F39: -0.038 | G39: 5.612 | H39: 7.79 | I39: =O39/1000 -> -1.857 | J39: 15816 | K39: -2232 | L39: -38 | M39: 5612 | N39: 7790 | O39: -1857
B40: 2016 K4 | C40: 2016 Q4 | D40: 13.676 | E40: -4.291 | F40: -0.07 | G40: 15.656 | H40: 0.487 | I40: -2.169 | J40: 13676 | K40: -4291 | L40: -70 | M40: 15656 | N40: 487 | O40: -2169
A41: 2017 | B41: 2017 K1 | C41: 2017 Q1 | D41: 2.299 | E41: -0.791 | F41: 1.377 | G41: =M41/1000 -> 15.879 | H41: 20.773 | I41: 4.659 | J41: 2299 | K41: -791 | L41: 1377 | M41: 15879 | N41: 20773 | O41: 4659
B42: 2017 K2 | C42: 2017 Q2 | D42: =J42/1000 -> 54.819 | E42: =K42/1000 -> -8.357 | F42: =L42/1000 -> 3.405 | G42: 19.292 | H42: =N42/1000 -> 32.389 | I42: =O42/1000 -> 2.428 | J42: 54819 | K42: -8357 | L42: 3405 | M42: 19292 | N42: 32389 | O42: 2428
B43: 2017 K3 | C43: 2017 Q3 | D43: =J43/1000 -> 39.403 | E43: =K43/1000 -> -0.079 | F43: =L43/1000 -> -4.565 | G43: 10.192 | H43: =N43/1000 -> 5.562 | I43: =O43/1000 -> -0.423 | J43: 39403 | K43: -79 | L43: -4565 | M43: 10192 | N43: 5562 | O43: -423
B44: 2017 K4 | C44: 2017 Q4 | D44: =J44/1000 -> 19.909 | E44: =K44/1000 -> -6.461 | F44: =L44/1000 -> -4.746 | G44: 18.068 | H44: =N44/1000 -> 6.901 | I44: =O44/1000 -> -4.47 | J44: 19909 | K44: -6461 | L44: -4746 | M44: 18068 | N44: 6901 | O44: -4470
A45: 2018 | B45: 2018 K1 | C45: 2018 Q1 | D45: =J45/1000 -> 23.773 | E45: =K45/1000 -> -2.913 | F45: =L45/1000 -> -2.639 | G45: 17.84 | H45: =N45/1000 -> 8.487 | I45: =O45/1000 -> 5.349 | J45: 23773 | K45: -2913 | L45: -2639 | M45: 17840 | N45: 8487 | O45: 5349
B46: 2018 K2 | C46: 2018 Q2 | D46: =J46/1000 -> 54.786 | E46: =K46/1000 -> -10.849 | F46: =L46/1000 -> 2.735 | G46: 18.8 | H46: =N46/1000 -> 8.735 | I46: =O46/1000 -> -0.199 | J46: 54786 | K46: -10849 | L46: 2735 | M46: 18800 | N46: 8735 | O46: -199
B47: 2018 K3 | C47: 2018 Q3 | D47: =J47/1000 -> 29.975 | E47: =K47/1000 -> -7.152 | F47: =L47/1000 -> 3.836 | G47: =M47/1000 -> 15.645 | H47: =N47/1000 -> 8.287 | I47: =O47/1000 -> -0.145 | J47: 29975 | K47: -7152 | L47: 3836 | M47: 15645 | N47: 8287 | O47: -145
B48: 2018 K4 | C48: 2018 Q4 | D48: =J48/1000 -> 29.372 | E48: =K48/1000 -> -4.756 | F48: =L48/1000 -> 3.309 | G48: =M48/1000 -> 20.44 | H48: =N48/1000 -> -16.356 | I48: -6.422 | J48: 29372 | K48: -4756 | L48: 3309 | M48: 20440 | N48: -16356 | O48: -6422
A49: 2019 | B49: 2019 K1 | C49: 2019 Q1 | D49: =J49/1000 -> 18.322 | E49: =K49/1000 -> -1.026 | F49: =L49/1000 -> -4.074 | G49: =M49/1000 -> 17.931 | H49: =N49/1000 -> 8.179 | I49: 3.353 | J49: 18322 | K49: -1026 | L49: -4074 | M49: 17931 | N49: 8179 | O49: 3353
B50: 2019 K2 | C50: 2019 Q2 | D50: =J50/1000 -> 65.525 | E50: =K50/1000 -> -3.51 | F50: =L50/1000 -> 0.139 | G50: =M50/1000 -> 21.104 | H50: =N50/1000 -> 12.249 | I50: 4.998 | J50: 65525 | K50: -3510 | L50: 139 | M50: 21104 | N50: 12249 | O50: 4998
B51: 2019 K3 | C51: 2019 Q3 | D51: =J51/1000 -> 9.496 | E51: =K51/1000 -> -1.82 | F51: =L51/1000 -> -0.167 | G51: =M51/1000 -> 12.093 | H51: =N51/1000 -> 7.684 | I51: 2.391 | J51: 9496 | K51: -1820 | L51: -167 | M51: 12093 | N51: 7684 | O51: 2391
B52: 2019 K4 | C52: 2019 Q4 | D52: =J52/1000 -> 0.3 | E52: =K52/1000 -> -1.287 | F52: =L52/1000 -> 1.046 | G52: =M52/1000 -> 23.396 | H52: =N52/1000 -> -1.42 | I52: -2.248 | J52: 300 | K52: -1287 | L52: 1046 | M52: 23396 | N52: -1420 | O52: -2248
A53: 2020 | B53: 2020 K1 | C53: 2020 Q1 | D53: =J53/1000 -> 83.295 | E53: =K53/1000 -> -3.396 | F53: =L53/1000 -> 2.448 | G53: =M53/1000 -> 15.972 | H53: =N53/1000 -> -63.173 | I53: =O53/1000 -> 10.432 | J53: 83295 | K53: -3396 | L53: 2448 | M53: 15972 | N53: -63173 | O53: 10432
B54: 2020 K2 | C54: 2020 Q2 | D54: =J54/1000 -> 76.781 | E54: =K54/1000 -> -1.135 | F54: =L54/1000 -> 14.523 | G54: =M54/1000 -> 18.666 | H54: =N54/1000 -> 34.162 | I54: =O54/1000 -> 3.048 | J54: 76781 | K54: -1135 | L54: 14523 | M54: 18666 | N54: 34162 | O54: 3048
B55: 2020K3 | C55: 2020 Q3 | D55: =J55/1000 -> 15.443 | E55: =K55/1000 -> -0.989 | F55: =L55/1000 -> 11.291 | G55: =M55/1000 -> 11.602 | H55: =N55/1000 -> 11.647 | I55: =O55/1000 -> 3.931 | J55: 15443 | K55: -989 | L55: 11291 | M55: 11602 | N55: 11647 | O55: 3931
B56: 2020K4 | C56: 2020 Q4 | D56: 42.063 | E56: -1.501 | F56: =L56/1000 -> 8.983 | G56: =M56/1000 -> 14.263 | H56: =N56/1000 -> 32.201 | I56: =O56/1000 -> -2.436 | J56: 42063 | K56: -1501 | L56: 8983 | M56: 14263 | N56: 32201 | O56: -2436
A57: 2021 | B57: 2021K1 | C57: 2021 Q1 | D57: =J57/1000 -> 28.254 | E57: =K57/1000 -> -0.157 | F57: =L57/1000 -> 9.349 | G57: =M57/1000 -> 11.785 | H57: =N57/1000 -> 46.579 | I57: =O57/1000 -> 25.389 | J57: 28254 | K57: -157 | L57: 9349 | M57: 11785 | N57: 46579 | O57: 25389
B58: 2021K2 | C58: 2021 Q2 | D58: =J58/1000 -> 77.07 | E58: =K58/1000 -> -1.133 | F58: =L58/1000 -> 40.222 | G58: =M58/1000 -> 16.105 | H58: =N58/1000 -> 39.678 | I58: =O58/1000 -> 17.528 | J58: 77070 | K58: -1133 | L58: 40222 | M58: 16105 | N58: 39678 | O58: 17528
B59: 2021K3 | C59: 2021 Q3 | D59: 43.744 | E59: -1.037 | F59: -29.168 | G59: 8.67 | H59: 14.601 | I59: =O59/1000 -> 18.609 | J59: 43744 | K59: -1037 | L59: -29168 | M59: 8670 | N59: 14601 | O59: 18609
B60: 2021K4 | C60: 2021 Q4 | D60: 40.773 | E60: -3.478 | F60: 6.951 | G60: 17.253 | H60: 0.087 | I60: =O60/1000 -> 17.077 | J60: 40773 | K60: -3478 | L60: 6951 | M60: 17253 | N60: 87 | O60: 17077
A61: 2022 | B61: 2022K1 | C61: 2022 Q1 | D61: =J61/1000 -> 64.405 | E61: =K61/1000 -> -1.186 | F61: 11.658 | G61: 14.196 | H61: -9.141 | I61: 21.15 | J61: 64405 | K61: -1186 | L61: 11658 | M61: 14196 | N61: -9141 | O61: 21150
B62: 2022K2 | C62: 2022 Q2 | D62: 101.951 | E62: 0.208 | F62: =L62/1000 -> 14.581 | G62: =M62/1000 -> 13.578 | H62: -33.77 | I62: 10.998 | J62: 101951 | K62: 208 | L62: 14581 | M62: 13578 | N62: -33770 | O62: 10998
B63: 2022K3 | C63: 2022 Q3 | D63: =J63/1000 -> 10.701 | E63: =K63/1000 -> 0.116 | F63: =L63/1000 -> 8.334 | G63: =M63/1000 -> 10.825 | H63: =N63/1000 -> -1.163 | I63: =O63/1000 -> 5.316 | J63: 10701 | K63: 116 | L63: 8334 | M63: 10825 | N63: -1163 | O63: 5316
B64: 2022K4 | C64: 2022 Q4 | D64: =J64/1000 -> -3.182 | E64: 1.688 | F64: -12.849 | G64: 18.592 | H64: 3.085 | I64: -8.583 | J64: -3182 | K64: 1688 | L64: -12849 | M64: 18592 | N64: 3085 | O64: -8583
A65: 2023 | B65: 2023K1 | C65: 2023 Q1 | D65: =J65/1000 -> -10.98 | E65: =K65/1000 -> 1.954 | F65: =L65/1000 -> 6.571 | G65: =M65/1000 -> 18.676 | H65: =N65/1000 -> 40.913 | I65: =O65/1000 -> 15.579 | J65: -10980 | K65: 1954 | L65: 6571 | M65: 18676 | N65: 40913 | O65: 15579
B66: 2023K2 | C66: 2023 Q2 | D66: =J66/1000 -> 50.109 | E66: =K66/1000 -> 0.685 | F66: =L66/1000 -> 7.283 | G66: =M66/1000 -> 19.128 | H66: =N66/1000 -> 52.296 | I66: =O66/1000 -> 4.115 | J66: 50109 | K66: 685 | L66: 7283 | M66: 19128 | N66: 52296 | O66: 4115
B67: 2023K3 | C67: 2023 Q3 | D67: =J67/1000 -> -5.641 | E67: =K67/1000 -> -0.525 | F67: =L67/1000 -> 3.106 | G67: =M67/1000 -> 16.493 | H67: =N67/1000 -> 11.84 | I67: =O67/1000 -> 3.768 | J67: -5641 | K67: -525 | L67: 3106 | M67: 16493 | N67: 11840 | O67: 3768
B68: 2023K4 | C68: 2023 Q4 | D68: =J68/1000 -> -14.476 | E68: =K68/1000 -> 2.993 | F68: =L68/1000 -> -1.605 | G68: 19.785 | H68: 8.175 | I68: -13.309 | J68: -14476 | K68: 2993 | L68: -1605 | M68: 19785 | N68: 8175 | O68: -13309
A69: 2024 | B69: 2024K1 | C69: 2024 Q1 | D69: =J69/1000 -> 13.696 | E69: =K69/1000 -> 1.089 | F69: 5.204 | G69: 20.11 | H69: 36.939 | I69: 17.149 | J69: 13696 | K69: 1089 | L69: 5204 | M69: 20110 | N69: 36939 | O69: 17149
B70: 2024K2 | C70: 2024 Q2 | D70: =J70/1000 -> 56.815 | E70: =K70/1000 -> -0.716 | F70: =L70/1000 -> 2.634 | G70: =M70/1000 -> 13.854 | H70: =N70/1000 -> 64.636 | I70: =O70/1000 -> 7.403 | J70: 56815 | K70: -716 | L70: 2634 | M70: 13854 | N70: 64636 | O70: 7403
B71: 2024K3 | C71: 2024 Q3 | D71: =J71/1000 -> -14.589 | E71: =K71/1000 -> -0.579 | F71: =L71/1000 -> -2.092 | G71: =M71/1000 -> 9.9 | H71: =N71/1000 -> 12.576 | I71: =O71/1000 -> 11.505 | J71: -14589 | K71: -579 | L71: -2092 | M71: 9900 | N71: 12576 | O71: 11505
B72: 2024K4 | C72: 2024 Q4 | D72: =J72/1000 -> -2.116 | E72: =K72/1000 -> 2.668 | F72: =L72/1000 -> 5.119 | G72: =M72/1000 -> 14.798 | H72: =N72/1000 -> 19.406 | I72: =O72/1000 -> -0.156 | J72: -2116 | K72: 2668 | L72: 5119 | M72: 14798 | N72: 19406 | O72: -156
A73: 2025 | B73: 2025K1 | C73: 2025 Q1 | D73: =J73/1000 -> 12.671 | E73: =K73/1000 -> -3.407 | F73: =L73/1000 -> -4.097 | G73: =M73/1000 -> 11.436 | H73: =N73/1000 -> -1.688 | I73: =O73/1000 -> 33.06 | J73: 12671 | K73: -3407 | L73: -4097 | M73: 11436 | N73: -1688 | O73: 33060
B74: 2025K2 | C74: 2025 Q2 | D74: =J74/1000 -> 109.871 | E74: =K74/1000 -> 0.8 | F74: =L74/1000 -> 3.992 | G74: =M74/1000 -> 8.891 | H74: =N74/1000 -> 43.084 | I74: =O74/1000 -> 15.682 | J74: 109871 | K74: 800 | L74: 3992 | M74: 8891 | N74: 43084 | O74: 15682
B75: 2025K3 | C75: 2025 Q3 | D75: =J75/1000 -> -6.016 | E75: =K75/1000 -> 1.041 | F75: =L75/1000 -> 4.841 | G75: =M75/1000 -> 3.157 | H75: =N75/1000 -> 29.729 | I75: =O75/1000 -> 18.983 | J75: -6016 | K75: 1041 | L75: 4841 | M75: 3157 | N75: 29729 | O75: 18983
B76: 2025K4 | C76: 2025 Q4 | D76: 10.97 | E76: -0.548 | F76: 1.163 | G76: 10.523 | H76: 25.825 | I76: -2.777 | J76: 10970 | K76: -548 | L76: 1163 | M76: 10523 | N76: 25825 | O76: -2777
A77: 2026 | B77: 2026K1 | C77: 2026 Q1 | D77: =J77/1000 -> 21.152 | E77: =K77/1000 -> -1.57 | F77: =L77/1000 -> 10.145 | G77: =M77/1000 -> 3.274 | H77: =N77/1000 -> 24.85 | I77: =O77/1000 -> 21.866 | J77: 21152 | K77: -1570 | L77: 10145 | M77: 3274 | N77: 24850 | O77: 21866

Sheet Diagram 1
B1: Hushållens finansiella sparande i vissa finansiella tillgångar, mdkr

Sheet Graph 1
B1: Households' transactions in certain financial assets, SEK billions
